fUST/lending_fUST_20260531
["ID","MTS","AMOUNT","RATE_DAILY","PERIOD"]
[423566497,1780236441000,-361.538987,9.181e-05,2]
[423566493,1780236441000,-361.538987,9.181e-05,2]
[423566506,1780236441000,-361.538987,9.181e-05,2]
[423566491,1780236441000,-361.538987,9.181e-05,2]
[423566494,1780236441000,-361.538987,9.181e-05,2]
[423566495,1780236441000,-361.538987,9.181e-05,2]
[423566490,1780236441000,-361.538987,9.181e-05,2]
[423566486,1780236441000,-361.538987,9.181e-05,2]
[423566488,1780236441000,-361.538987,9.181e-05,2]
[423566489,1780236441000,-361.538987,9.181e-05,2]
[423566487,1780236441000,-361.538987,9.181e-05,2]
[423566484,1780236441000,-361.538987,9.181e-05,2]
[423566485,1780236441000,-361.538987,9.181e-05,2]
[423566482,1780236441000,-361.538987,9.181e-05,2]
[423566492,1780236441000,-361.538987,9.181e-05,2]
[423566518,1780236442000,-361.538987,9.181e-05,2]
[423566522,1780236442000,-361.538987,9.181e-05,2]
[423566521,1780236442000,-361.538987,9.181e-05,2]
[423566523,1780236442000,-361.538987,9.181e-05,2]
[423566527,1780236442000,-361.538987,9.181e-05,2]
[423566525,1780236442000,-361.538987,9.181e-05,2]
[423566526,1780236442000,-361.538987,9.181e-05,2]
[423566529,1780236442000,-361.538987,9.181e-05,2]
[423566520,1780236442000,-361.538987,9.181e-05,2]
[423566524,1780236442000,-361.538987,9.181e-05,2]
[423566519,1780236442000,-361.538987,9.181e-05,2]
[423566511,1780236442000,-361.538987,9.181e-05,2]
[423566517,1780236442000,-361.538987,9.181e-05,2]
[423566515,1780236442000,-361.538987,9.181e-05,2]
[423566513,1780236442000,-361.538987,9.181e-05,2]
[423566514,1780236442000,-361.538987,9.181e-05,2]
[423566512,1780236442000,-361.538987,9.181e-05,2]
[423566510,1780236442000,-361.538987,9.181e-05,2]
[423566509,1780236442000,-361.538987,9.181e-05,2]
[423566507,1780236442000,-361.538987,9.181e-05,2]
[423566508,1780236442000,-361.538987,9.181e-05,2]
[423566530,1780236442000,-361.538987,9.181e-05,2]
[423566516,1780236442000,-361.538987,9.181e-05,2]
[423566531,1780236442000,-361.538987,9.181e-05,2]
[423566528,1780236442000,-361.538987,9.181e-05,2]
[423566534,1780236442000,-361.538987,9.181e-05,2]
[423566533,1780236442000,-361.538987,9.181e-05,2]
[423566555,1780236442000,-500.0,9.315e-05,2]
[423566554,1780236442000,-173.29222595,9.314e-05,2]
[423566553,1780236442000,-361.538987,9.181e-05,2]
[423566552,1780236442000,-361.538987,9.181e-05,2]
[423566551,1780236442000,-361.538987,9.181e-05,2]
[423566549,1780236442000,-361.538987,9.181e-05,2]
[423566548,1780236442000,-361.538987,9.181e-05,2]
[423566547,1780236442000,-361.538987,9.181e-05,2]
[423566546,1780236442000,-361.538987,9.181e-05,2]
[423566543,1780236442000,-361.538987,9.181e-05,2]
[423566550,1780236442000,-361.538987,9.181e-05,2]
[423566544,1780236442000,-361.538987,9.181e-05,2]
[423566542,1780236442000,-361.538987,9.181e-05,2]
[423566541,1780236442000,-361.538987,9.181e-05,2]
[423566540,1780236442000,-361.538987,9.181e-05,2]
[423566539,1780236442000,-361.538987,9.181e-05,2]
[423566538,1780236442000,-361.538987,9.181e-05,2]
[423566536,1780236442000,-361.538987,9.181e-05,2]
[423566537,1780236442000,-361.538987,9.181e-05,2]
[423566535,1780236442000,-361.538987,9.181e-05,2]
[423566556,1780236442000,-500.0,9.454e-05,2]
[423566532,1780236442000,-361.538987,9.181e-05,2]
[423566545,1780236442000,-361.538987,9.181e-05,2]
[423566558,1780236443000,-156.24911532,9.728e-05,2]
[423566557,1780236443000,-500.0,9.589e-05,2]
[423566561,1780236443000,-1345.88120034,0.000102,2]
[423566560,1780236443000,-328.44707969,0.00010136,2]
[423566562,1780236443000,-92.32622539,0.00010223,2]
[423566559,1780236443000,-500.0,9.863e-05,2]
[423566590,1780236632000,-957.89352922,0.00010223,2]
[423566583,1780236632000,-880.11671611,0.0001002,2]
[423566586,1780236632000,-4119.88328389,0.0001002,2]
[423566596,1780236632000,-300.0,0.00010498,2]
[423566597,1780236632000,-1200.0,0.00010499,2]
[423566588,1780236632000,-433.45811007,0.00010121,2]
[423566594,1780236632000,-300.0,0.00010498,2]
[423566593,1780236632000,-1076.70496028,0.000104,2]
[423566591,1780236632000,-1200.0,0.00010299,2]
[423566589,1780236632000,-1076.70496028,0.000102,2]
[423566592,1780236632000,-1076.70496028,0.000103,2]
[423566598,1780236632000,-1076.70496028,0.000105,2]
[423566599,1780236632000,-1076.70496028,0.000106,2]
[423566605,1780236632000,-1792.13587128,0.00010997,2]
[423566595,1780236632000,-300.0,0.00010498,2]
[423566602,1780236632000,-575.86087128,0.00010997,2]
[423566604,1780236632000,-534.13912872,0.00010997,2]
[423566601,1780236632000,-160.0,0.00010674,2]
[423566600,1780236632000,-160.0,0.00010674,2]
[423566603,1780236632000,-304.0,0.00010997,2]
[423566606,1780236632000,-424.64431376,0.00010997,2]
[423566610,1780236638000,-1082.06907381,0.00010997,2]
[423566609,1780236638000,-500.0,9.18e-05,2]
[423566612,1780236640000,-444.0,0.00011029,2]
[423566611,1780236640000,-330.15074115,0.00010997,2]
[423566614,1780236640000,-185.0,0.00011029,2]
[423566615,1780236640000,-473.41491709,0.00011329,2]
[423566613,1780236640000,-186.714,0.00011029,2]
[423566646,1780236646000,-162.68866812,0.00013652,2]
[423566649,1780236646000,-164.91466943,0.00013653,2]
[423566652,1780236646000,-189.39633669,0.00013654,2]
[423566654,1780236646000,-323.40196377,0.00013663,2]
[423566664,1780236646000,-160.584644,0.0001379,2]
[423566655,1780236646000,-514.46238078,0.00013663,2]
[423566653,1780236646000,-160.584644,0.00013654,2]
[423566657,1780236646000,-153.39202824,0.00013663,2]
[423566656,1780236646000,-174.09641676,0.00013663,2]
[423566662,1780236646000,-1000.0,0.00013699,2]
[423566663,1780236646000,-231.99357022,0.00013699,2]
[423566660,1780236646000,-158.55444988,0.00013663,2]
[423566658,1780236646000,-212.85921684,0.00013663,2]
[423566648,1780236646000,-171.71771617,0.00013653,2]
[423566639,1780236646000,-250.24208455,0.0001324,2]
[423566650,1780236646000,-185.49194335,0.00013654,2]
[423566665,1780236646000,-160.739,0.00013917,2]
[423566633,1780236646000,-1206.58508291,0.00011329,2]
[423566636,1780236646000,-420.0,0.00011542,2]
[423566634,1780236646000,-420.0,0.00011542,2]
[423566637,1780236646000,-160.584644,0.00012971,2]
[423566638,1780236646000,-160.584644,0.00013108,2]
[423566651,1780236646000,-161.26021741,0.00013654,2]
[423566635,1780236646000,-420.0,0.00011542,2]
[423566642,1780236646000,-160.584644,0.00013517,2]
[423566644,1780236646000,-192.03642683,0.00013652,2]
[423566641,1780236646000,-160.584644,0.00013381,2]
[423566643,1780236646000,-168.62321155,0.00013652,2]
[423566645,1780236646000,-170.95097782,0.00013652,2]
[423566647,1780236646000,-171.67397865,0.00013652,2]
[423566640,1780236646000,-160.584644,0.00013244,2]
[423566666,1780236646000,-160.584644,0.00013927,2]
[423566675,1780236646000,-152.0,0.00014332,7]
[423566668,1780236646000,-3629.0,0.00013997,2]
[423566667,1780236646000,-1414.0,0.00013997,2]
[423566699,1780236646000,-789.81506508,0.00014791,2]
[423566692,1780236646000,-348.19283351,0.00014359,2]
[423566695,1780236646000,-317.10889975,0.00014359,2]
[423566696,1780236646000,-181.36663081,0.000147,2]
[423566690,1780236646000,-646.80392755,0.00014359,2]
[423566694,1780236646000,-425.71843367,0.00014359,2]
[423566693,1780236646000,-306.78405647,0.00014359,2]
[423566698,1780236646000,-6487.82853962,0.00014791,2]
[423566688,1780236646000,-322.52043482,0.00014349,2]
[423566697,1780236646000,-151.0,0.000147,2]
[423566691,1780236646000,-1028.92476155,0.00014359,2]
[423566686,1780236646000,-160.21341935,0.00014349,2]
[423566687,1780236646000,-370.9838867,0.00014349,2]
[423566683,1780236646000,-343.34795731,0.00014347,2]
[423566689,1780236646000,-378.79267338,0.00014349,2]
[423566684,1780236646000,-343.43543234,0.00014349,2]
[423566669,1780236646000,-444.0,0.00014029,2]
[423566671,1780236646000,-160.584644,0.00014063,2]
[423566672,1780236646000,-160.584644,0.000142,2]
[423566670,1780236646000,-185.0,0.00014029,2]
[423566682,1780236646000,-150.47486571,0.00014347,2]
[423566673,1780236646000,-152.0,0.00014316,7]
[423566676,1780236646000,-160.584644,0.00014337,2]
[423566674,1780236646000,-152.0,0.00014316,7]
[423566678,1780236646000,-337.2464231,0.00014347,2]
[423566677,1780236646000,-151.0,0.00014347,2]
[423566681,1780236646000,-325.37733624,0.00014347,2]
[423566680,1780236646000,-341.90195564,0.00014347,2]
[423566685,1780236646000,-329.82933885,0.00014349,2]
[423566679,1780236646000,-384.07285365,0.00014347,2]
[423566706,1780236649000,-512.85293346,0.00014811,2]
[423566701,1780236649000,-308.0,0.00014795,3]
[423566700,1780236649000,-3009.1199011,0.00014791,2]
[423566707,1780236649000,-488.06600436,0.00014811,2]
[423566710,1780236649000,-270.10908937,0.00014811,2]
[423566704,1780236649000,-231.62602138,0.00014811,2]
[423566711,1780236649000,-165.03051539,0.00014811,2]
[423566705,1780236649000,-576.10928048,0.00014811,2]
[423566703,1780236649000,-505.86963465,0.00014811,2]
[423566712,1780236649000,-300.94973141,0.00014811,2]
[423566709,1780236649000,-190.53109661,0.00014811,2]
[423566708,1780236649000,-159.03525728,0.00014811,2]
[423566713,1780236649000,-201.50612538,0.00014812,2]
[423566714,1780236649000,-387.25315879,0.00014812,2]
[423566702,1780236649000,-151.0,0.000148,2]
[423566718,1780236831000,-500.0,9.18e-05,2]
[423566753,1780237092000,2811.4158645,0.00020602,120]
[423566756,1780237221000,-1082.06907381,8.839e-05,2]
[423566757,1780237232000,-1082.06907381,8e-05,2]
[423566758,1780237333000,7483.901836,0.00020656,120]
[423566847,1780237833000,-500.0,7.999e-05,2]
[423566844,1780237833000,-500.0,7.999e-05,2]
[423566838,1780237833000,-500.0,7.999e-05,2]
[423566842,1780237833000,-500.0,7.999e-05,2]
[423566832,1780237833000,-412.84890909,7.999e-05,2]
[423566830,1780237833000,-500.0,7.999e-05,2]
[423566827,1780237833000,-500.0,7.999e-05,2]
[423566849,1780237833000,-500.0,7.999e-05,2]
[423566840,1780237833000,-500.0,7.999e-05,2]
[423566813,1780237833000,-605.52935036,7.801e-05,2]
[423566834,1780237833000,-500.0,7.999e-05,2]
[423566829,1780237833000,-594.81532074,7.999e-05,2]
[423566836,1780237833000,-500.0,7.999e-05,2]
[423566825,1780237833000,-500.0,7.999e-05,2]
[423566819,1780237833000,-300.0,7.998e-05,2]
[423566821,1780237833000,-1200.0,7.998e-05,2]
[423566817,1780237833000,-3747.59479665,7.801e-05,2]
[423566815,1780237833000,-802.87585299,7.801e-05,2]
[423566851,1780237833000,-500.0,7.999e-05,2]
[423566823,1780237833000,-288.96289384,7.999e-05,2]
[423566859,1780237833000,-500.0,7.999e-05,2]
[423566869,1780237833000,-500.0,7.999e-05,2]
[423566853,1780237833000,-500.0,7.999e-05,2]
[423566865,1780237833000,-552.14458679,7.999e-05,2]
[423566892,1780237833000,-600.0,7.999e-05,2]
[423566895,1780237833000,-500.0,7.999e-05,2]
[423566891,1780237833000,-500.0,7.999e-05,2]
[423566881,1780237833000,-500.0,7.999e-05,2]
[423566875,1780237833000,-500.0,7.999e-05,2]
[423566879,1780237833000,-500.0,7.999e-05,2]
[423566888,1780237833000,-500.0,7.999e-05,2]
[423566887,1780237833000,-500.0,7.999e-05,2]
[423566877,1780237833000,-500.0,7.999e-05,2]
[423566883,1780237833000,-618.49159876,7.999e-05,2]
[423566873,1780237833000,-469.39003583,7.999e-05,2]
[423566871,1780237833000,-500.0,7.999e-05,2]
[423566897,1780237833000,-7570.30477038,8e-05,2]
[423566863,1780237833000,-536.84794713,7.999e-05,2]
[423566867,1780237833000,-500.0,7.999e-05,2]
[423566857,1780237833000,-500.0,7.999e-05,2]
[423566861,1780237833000,-500.0,7.999e-05,2]
[423566855,1780237833000,-500.0,7.999e-05,2]
[423566884,1780237833000,-500.0,7.999e-05,2]
[423566947,1780237838000,-2243.13533391,0.000102,2]
[423566937,1780237838000,-3917.93092619,8e-05,2]
[423566944,1780237838000,-185.344189,9.521e-05,2]
[423566945,1780237838000,-587.0,9.678e-05,2]
[423566946,1780237838000,-199.7784,0.0001012,2]
[423566934,1780237838000,-489.636489,8e-05,2]
[423566938,1780237838000,-273.06685288,8.137e-05,2]
[423566936,1780237838000,-5000.0,8e-05,2]
[423566935,1780237838000,-4510.363511,8e-05,2]
[423566933,1780237838000,-52863.56615581,8e-05,2]
[423566942,1780237838000,-7114.3457499,9.109e-05,2]
[423566940,1780237838000,-22690.8690264,8.456e-05,2]
[423566949,1780237838000,-160.0,0.00010233,2]
[423566943,1780237838000,-300.0,9.434e-05,2]
[423566941,1780237838000,-420.0,8.798e-05,2]
[423566950,1780237838000,-160.0,0.00010233,2]
[423566959,1780237838000,-1842.28451257,0.000106,2]
[423566961,1780237838000,-216.0,0.00010645,2]
[423566960,1780237838000,-400.85082134,0.000106,2]
[423566957,1780237838000,-2243.13533391,0.000105,2]
[423566963,1780237838000,-2243.13533391,0.000109,2]
[423566952,1780237838000,-767.37531181,0.00010233,2]
[423566962,1780237838000,-2243.13533391,0.000108,2]
[423566964,1780237838000,-78.01506351,0.00010959,2]
[423566954,1780237838000,-160.0,0.00010233,2]
[423566956,1780237838000,-2243.13533391,0.000104,2]
[423566955,1780237838000,-2243.13533391,0.000103,2]
[423566958,1780237838000,-185.344189,0.00010523,2]
[423566939,1780237838000,-186.18480715,8.219e-05,2]
[423566965,1780237839000,-4124.8459591,0.00010959,2]
[423566966,1780237839000,-3602.28317333,0.00010959,2]
[423566967,1780237839000,-2223.65608523,0.00010959,2]
[423567015,1780237841000,-500.32655012,0.00013698,2]
[423567004,1780237841000,-156.49626033,0.00013698,2]
[423567006,1780237841000,-500.0,0.00013698,2]
[423567009,1780237841000,-500.0,0.00013698,2]
[423567008,1780237841000,-500.0,0.00013698,2]
[423567012,1780237841000,-500.0,0.00013698,2]
[423567014,1780237841000,-500.0,0.00013698,2]
[423567013,1780237841000,-498.89837766,0.00013698,2]
[423567005,1780237841000,-500.0,0.00013698,2]
[423567003,1780237841000,-158.08312201,0.00013654,2]
[423567007,1780237841000,-500.0,0.00013698,2]
[423567010,1780237841000,-501.73147088,0.00013698,2]
[423567028,1780237841000,-500.0,0.00013698,2]
[423567017,1780237841000,-500.0,0.00013698,2]
[423567016,1780237841000,-500.0,0.00013698,2]
[423567018,1780237841000,-500.94094509,0.00013698,2]
[423567021,1780237841000,-500.40219254,0.00013698,2]
[423567024,1780237841000,-500.0,0.00013698,2]
[423567027,1780237841000,-501.19254656,0.00013698,2]
[423567025,1780237841000,-503.88909555,0.00013698,2]
[423567019,1780237841000,-1000.0,0.00013698,2]
[423567023,1780237841000,-501.18335167,0.00013698,2]
[423567022,1780237841000,-390.0,0.00013698,2]
[423567020,1780237841000,-500.0,0.00013698,2]
[423567026,1780237841000,-500.0,0.00013698,2]
[423567002,1780237841000,-154.35805235,0.00013654,2]
[423567011,1780237841000,-500.0,0.00013698,2]
[423566996,1780237841000,-170.11849528,0.00013653,2]
[423566975,1780237841000,-2243.13533391,0.000112,2]
[423566995,1780237841000,-167.33536892,0.00013653,2]
[423566972,1780237841000,-4971.19971883,0.00010959,2]
[423566973,1780237841000,-2243.13533391,0.00011,2]
[423566974,1780237841000,-2243.13533391,0.000111,2]
[423567030,1780237841000,-500.0,0.00013698,2]
[423566976,1780237841000,-186.0,0.00011507,3]
[423566977,1780237841000,-185.344189,0.00011525,2]
[423566979,1780237841000,-648.0,0.00011689,2]
[423566988,1780237841000,-151.5,0.0001338,2]
[423566978,1780237841000,-2204.0,0.00011689,2]
[423566989,1780237841000,-151.5,0.0001338,2]
[423566981,1780237841000,-185.0,0.00011689,2]
[423566980,1780237841000,-3629.0,0.00011689,2]
[423566997,1780237841000,-152.59385746,0.00013653,2]
[423566982,1780237841000,-23945.6528374,0.00013083,2]
[423566987,1780237841000,-151.5,0.0001338,2]
[423566985,1780237841000,-151.5,0.0001338,2]
[423566984,1780237841000,-151.0,0.000133,2]
[423566991,1780237841000,-151.0,0.000135,2]
[423567001,1780237841000,-195.87715536,0.00013654,2]
[423566990,1780237841000,-228.28996839,0.0001338,2]
[423566998,1780237841000,-220.15037919,0.00013653,2]
[423566999,1780237841000,-189.88782926,0.00013654,2]
[423566992,1780237841000,-190.92057883,0.00013653,2]
[423566993,1780237841000,-314.6161841,0.00013653,2]
[423566994,1780237841000,-500.40300401,0.00013653,2]
[423567000,1780237841000,-186.97969627,0.00013654,2]
[423566983,1780237841000,-2807.4349865,0.00013083,2]
[423567029,1780237841000,-501.04964608,0.00013698,2]
[423566986,1780237841000,-151.5,0.0001338,2]
[423567031,1780237841000,-598.92817112,0.00013698,2]
[423567062,1780237841000,-500.0,0.00013698,2]
[423567065,1780237841000,-452.98139125,0.00013698,2]
[423567066,1780237841000,-500.0,0.00013698,2]
[423567069,1780237841000,-500.76583732,0.00013698,2]
[423567068,1780237841000,-500.0,0.00013698,2]
[423567070,1780237841000,-500.0,0.00013698,2]
[423567071,1780237841000,-302.89177779,0.00013698,2]
[423567074,1780237841000,-500.0,0.00013698,2]
[423567075,1780237841000,-1000.0,0.00013699,2]
[423567072,1780237841000,-501.33494906,0.00013698,2]
[423567077,1780237841000,-151.0,0.00013699,2]
[423567067,1780237841000,-501.1766805,0.00013698,2]
[423567061,1780237841000,-500.0,0.00013698,2]
[423567073,1780237841000,-500.0,0.00013698,2]
[423567079,1780237841000,-151.0,0.00013699,2]
[423567081,1780237841000,-243.662454,0.00013699,2]
[423567082,1780237841000,-151.0,0.00013699,2]
[423567080,1780237841000,-283.51319,0.00013699,2]
[423567086,1780237841000,-151.0,0.00013699,2]
[423567083,1780237841000,-151.0,0.00013699,2]
[423567088,1780237841000,-151.0,0.00013699,2]
[423567087,1780237841000,-151.0,0.00013699,2]
[423567084,1780237841000,-151.0,0.00013699,2]
[423567085,1780237841000,-151.0,0.00013699,2]
[423567089,1780237841000,-151.0,0.00013699,2]
[423567033,1780237841000,-500.0,0.00013698,2]
[423567078,1780237841000,-151.0,0.00013699,2]
[423567063,1780237841000,-502.87089482,0.00013698,2]
[423567076,1780237841000,-293.331155,0.00013699,2]
[423567055,1780237841000,-500.0,0.00013698,2]
[423567040,1780237841000,-500.76016515,0.00013698,2]
[423567060,1780237841000,-500.0,0.00013698,2]
[423567041,1780237841000,-500.0,0.00013698,2]
[423567034,1780237841000,-508.18888521,0.00013698,2]
[423567032,1780237841000,-534.44284069,0.00013698,2]
[423567035,1780237841000,-500.65754464,0.00013698,2]
[423567038,1780237841000,-500.0,0.00013698,2]
[423567039,1780237841000,-500.0,0.00013698,2]
[423567037,1780237841000,-500.0,0.00013698,2]
[423567043,1780237841000,-465.8989259,0.00013698,2]
[423567054,1780237841000,-500.0,0.00013698,2]
[423567053,1780237841000,-500.49348083,0.00013698,2]
[423567046,1780237841000,-509.70540374,0.00013698,2]
[423567044,1780237841000,-500.0,0.00013698,2]
[423567036,1780237841000,-440.32266565,0.00013698,2]
[423567058,1780237841000,-500.0,0.00013698,2]
[423567042,1780237841000,-500.0,0.00013698,2]
[423567059,1780237841000,-500.0,0.00013698,2]
[423567057,1780237841000,-500.40497197,0.00013698,2]
[423567056,1780237841000,-500.0,0.00013698,2]
[423567050,1780237841000,-500.0,0.00013698,2]
[423567052,1780237841000,-500.0,0.00013698,2]
[423567047,1780237841000,-501.70103336,0.00013698,2]
[423567049,1780237841000,-500.0,0.00013698,2]
[423567048,1780237841000,-500.0,0.00013698,2]
[423567045,1780237841000,-500.0,0.00013698,2]
[423567051,1780237841000,-500.0,0.00013698,2]
[423567064,1780237841000,-500.0,0.00013698,2]
[423567134,1780237842000,-379.77565852,0.0001435,2]
[423567136,1780237842000,-391.75431072,0.0001435,2]
[423567130,1780237842000,-178.58699578,0.00014349,2]
[423567132,1780237842000,-440.30075839,0.00014349,2]
[423567138,1780237842000,-316.16624402,0.0001435,2]
[423567117,1780237842000,-500.0,0.00014246,2]
[423567124,1780237842000,-381.84115765,0.00014349,2]
[423567126,1780237842000,-1000.80600801,0.00014349,2]
[423567122,1780237842000,-151.0,0.000143,2]
[423567123,1780237842000,-152.0,0.0001434,7]
[423567133,1780237842000,-216.40726724,0.0001435,2]
[423567125,1780237842000,-629.2323682,0.00014349,2]
[423567131,1780237842000,-157.68184844,0.00014349,2]
[423567145,1780237842000,-500.0,0.0001452,2]
[423567139,1780237842000,-1294.95710472,0.000144,2]
[423567141,1780237842000,-191.2602274,0.00014403,2]
[423567137,1780237842000,-308.71610471,0.0001435,2]
[423567140,1780237842000,-192.40044766,0.00014402,2]
[423567129,1780237842000,-305.18771492,0.00014349,2]
[423567142,1780237842000,-200.0,0.0001451,2]
[423567144,1780237842000,-500.0,0.0001452,2]
[423567153,1780237842000,-151.0,0.00014688,2]
[423567147,1780237842000,-500.0,0.0001452,2]
[423567143,1780237842000,-500.0,0.0001452,2]
[423567154,1780237842000,-151.0,0.00014688,2]
[423567155,1780237842000,-151.0,0.00014688,2]
[423567128,1780237842000,-340.23699055,0.00014349,2]
[423567135,1780237842000,-373.95939254,0.0001435,2]
[423567120,1780237842000,-500.0,0.00014246,2]
[423567092,1780237842000,-151.0,0.00013699,2]
[423567127,1780237842000,-334.67073784,0.00014349,2]
[423567090,1780237842000,-151.0,0.00013699,2]
[423567091,1780237842000,-151.0,0.00013699,2]
[423567146,1780237842000,-500.0,0.0001452,2]
[423567094,1780237842000,-203.107492,0.00013699,2]
[423567104,1780237842000,-500.0,0.00013972,2]
[423567105,1780237842000,-500.0,0.00013972,2]
[423567100,1780237842000,-500.0,0.00013972,2]
[423567097,1780237842000,-177.405,0.00013768,2]
[423567096,1780237842000,-295.0975718,0.00013762,2]
[423567101,1780237842000,-500.0,0.00013972,2]
[423567099,1780237842000,-151.0,0.000139,2]
[423567098,1780237842000,-3372.5553007,0.00013873,2]
[423567095,1780237842000,-151.0,0.000137,2]
[423567093,1780237842000,-151.0,0.00013699,2]
[423567102,1780237842000,-500.0,0.00013972,2]
[423567103,1780237842000,-500.0,0.00013972,2]
[423567106,1780237842000,-500.0,0.00013972,2]
[423567107,1780237842000,-500.0,0.00013972,2]
[423567108,1780237842000,-500.0,0.00013972,2]
[423567110,1780237842000,-288.369756,0.00014,2]
[423567109,1780237842000,-1294.95710472,0.00014,2]
[423567111,1780237842000,-1294.95710472,0.000141,2]
[423567113,1780237842000,-500.0,0.00014246,2]
[423567115,1780237842000,-500.0,0.00014246,2]
[423567114,1780237842000,-500.0,0.00014246,2]
[423567112,1780237842000,-151.0,0.000141,2]
[423567118,1780237842000,-500.0,0.00014246,2]
[423567116,1780237842000,-500.0,0.00014246,2]
[423567121,1780237842000,-1294.95710472,0.000143,2]
[423567119,1780237842000,-500.0,0.00014246,2]
[423567149,1780237842000,-500.0,0.0001452,2]
[423567178,1780237842000,-572.76173648,0.00014812,2]
[423567148,1780237842000,-500.0,0.0001452,2]
[423567189,1780237842000,-315.36369689,0.00014812,2]
[423567195,1780237842000,-463.07415706,0.00014813,2]
[423567151,1780237842000,-1294.95710472,0.000146,2]
[423567191,1780237842000,-432.81453448,0.00014813,2]
[423567190,1780237842000,-660.45113758,0.00014812,2]
[423567192,1780237842000,-569.66348777,0.00014813,2]
[423567193,1780237842000,-560.93908882,0.00014813,2]
[423567197,1780237842000,-474.24936603,0.00014813,2]
[423567202,1780237842000,-1294.95710472,0.000149,2]
[423567200,1780237842000,-382.5204548,0.00014867,2]
[423567201,1780237842000,-154.41734759,0.00014867,2]
[423567203,1780237842000,-151.0,0.000149,2]
[423567208,1780237842000,-232329.61472169,0.00015,2]
[423567188,1780237842000,-192.53560129,0.00014812,2]
[423567207,1780237842000,-6793.07745294,0.000149,2]
[423567198,1780237842000,-267.02236559,0.00014866,2]
[423567205,1780237842000,-151.0,0.000149,2]
[423567204,1780237842000,-151.0,0.000149,2]
[423567206,1780237842000,-151.0,0.000149,2]
[423567209,1780237842000,-1101.75248572,0.00015,2]
[423567210,1780237842000,-163.1,0.00015,30]
[423567214,1780237842000,-351.15588401,0.00015,2]
[423567217,1780237842000,-500.0,0.00015,2]
[423567216,1780237842000,-227292.75788132,0.00015,2]
[423567212,1780237842000,-120692.41962743,0.00015,2]
[423567218,1780237842000,-8783.57146194,0.00015,2]
[423567213,1780237842000,-266.0,0.00015,2]
[423567215,1780237842000,-4014.75179821,0.00015,2]
[423567199,1780237842000,-384.80089532,0.00014866,2]
[423567187,1780237842000,-357.17399157,0.00014812,2]
[423567194,1780237842000,-587.63146609,0.00014813,2]
[423567186,1780237842000,-194.26700046,0.00014812,2]
[423567152,1780237842000,-151.0,0.000146,2]
[423567150,1780237842000,-500.0,0.0001452,2]
[423567165,1780237842000,-500.0,0.00014794,2]
[423567160,1780237842000,-1294.95710472,0.000147,2]
[423567167,1780237842000,-500.0,0.00014794,2]
[423567157,1780237842000,-3629.0,0.00014689,2]
[423567163,1780237842000,-500.0,0.00014794,2]
[423567168,1780237842000,-500.0,0.00014794,2]
[423567156,1780237842000,-151.0,0.00014688,2]
[423567185,1780237842000,-185.5411335,0.00014812,2]
[423567159,1780237842000,-423.37022446,0.000147,2]
[423567162,1780237842000,-500.0,0.00014794,2]
[423567166,1780237842000,-500.0,0.00014794,2]
[423567158,1780237842000,-185.0,0.00014689,2]
[423567164,1780237842000,-500.0,0.00014794,2]
[423567169,1780237842000,-151.0,0.000148,2]
[423567196,1780237842000,-271.5902848,0.00014813,2]
[423567161,1780237842000,-500.0,0.00014794,2]
[423567179,1780237842000,-943.84855229,0.00014812,2]
[423567182,1780237842000,-510.35548583,0.00014812,2]
[423567180,1780237842000,-1501.20901202,0.00014812,2]
[423567181,1780237842000,-502.00610677,0.00014812,2]
[423567184,1780237842000,-457.78157238,0.00014812,2]
[423567172,1780237842000,-151.0,0.00014812,2]
[423567173,1780237842000,-151.0,0.00014812,2]
[423567176,1780237842000,-151.0,0.00014812,2]
[423567171,1780237842000,-151.0,0.000148,2]